bitfinex/quotes_ETHUSD_20250518
["timestamp","ask_amount","ask_price","bid_price","bid_amount"]
[1747550255516,12.06082204,2496.4,2495.9,4.00651489]
[1747550255718,8.055,2496.4,2496.0,4.00640008]
[1747550257047,8.055,2496.4,2496.1,4.00617609]
[1747550257634,4.80516814,2496.6,2496.1,4.00617609]
[1747550257838,8.055,2496.4,2496.1,4.00617609]
[1747550258039,8.055,2496.4,2496.0,4.00637969]
[1747550259738,8.05040001,2496.4,2496.0,4.00637969]
[1747550259938,8.05040001,2496.4,2496.1,4.00623965]
[1747550260141,8.05040001,2496.4,2496.1,4.79693965]
[1747550260558,8.05040001,2496.4,2496.1,0.7907]
[1747550260917,8.05040001,2496.4,2496.1,4.79691949]
[1747550261116,8.05040001,2496.4,2496.2,4.00605626]
[1747550261345,8.05040001,2496.4,2496.1,4.7969061]
[1747550261982,8.05040001,2496.4,2496.2,4.00606174]
[1747550263026,8.05040001,2496.4,2496.1,4.79687431]
[1747550264265,4.00546535,2496.6,2496.1,4.79687431]
[1747550264463,8.055,2496.5,2496.1,0.7907]
[1747550264764,8.055,2496.5,2496.1,4.79681666]
[1747550265352,8.055,2496.5,2496.0,4.00632635]
[1747550265545,8.055,2496.5,2496.1,4.00623822]
[1747550266182,28.47435123,2496.7,2496.1,4.00623822]
[1747550266471,8.055,2496.6,2496.1,4.00624974]
[1747550266766,12.06045147,2496.6,2496.1,4.00624974]
[1747550266979,4.00545147,2496.6,2496.1,4.00624974]
[1747550267181,12.06045147,2496.6,2496.1,4.00624974]
[1747550267474,12.05580545,2496.6,2496.1,4.00624974]
[1747550267875,12.05580545,2496.6,2496.0,4.00636978]
[1747550268068,4.78813648,2496.3,2495.8,4.00662579]
[1747550268265,4.78820482,2496.3,2495.7,4.81542826]
[1747550268576,4.78820482,2496.3,2495.8,4.00672301]
[1747550269355,0.7822,2496.3,2495.8,4.00672301]
[1747550270078,0.7822,2496.5,2496.0,4.00630516]
[1747550270466,4.78784013,2496.5,2495.9,4.00650255]
[1747550270672,0.7822,2496.5,2496.0,4.00639288]
[1747550271241,4.78782855,2496.5,2496.0,4.00639288]
[1747550271437,8.055,2496.4,2496.0,4.00639288]
[1747550271689,8.055,2496.4,2495.9,4.00651224]
[1747550272561,8.055,2496.4,2496.0,4.00640341]
[1747550273570,8.055,2496.4,2495.9,4.00652063]
[1747550273772,4.00605088,2496.3,2495.7,0.8086]
[1747550273995,4.00614969,2496.2,2495.7,0.8086]
[1747550274145,0.752,2496.1,2495.6,4.00703676]
[1747550274700,0.752,2496.1,2495.5,4.64622881]
[1747550274701,4.75828671,2496.1,2495.5,4.64622881]
[1747550275138,4.75100897,2496.1,2495.5,4.64622881]
[1747550275768,0.74472226,2496.1,2495.6,4.00704685]
[1747550276290,7.883,2496.2,2495.7,0.04006815]
[1747550276505,7.883,2496.2,2495.8,4.00662151]
[1747550280594,7.883,2496.2,2495.9,4.00644665]
[1747550280793,0.8195,2496.3,2495.9,4.00643679]
[1747550281097,8.7025,2496.3,2495.9,4.00643679]
[1747550281389,8.7025,2496.3,2495.9,4.00647454]
[1747550281565,7.883,2496.3,2495.9,4.00657077]
[1747550281766,7.883,2496.3,2495.9,4.8883886]
[1747550282196,7.883,2496.3,2495.9,0.88181783]
[1747550282363,7.883,2496.3,2495.8,4.00667051]
[1747550283094,7.87536203,2496.3,2495.8,4.00667051]
[1747550283760,11.88130657,2496.3,2495.8,4.00667051]
[1747550283967,7.87536203,2496.3,2495.8,4.00667051]
[1747550284172,11.88140003,2496.3,2495.8,4.00672383]
[1747550284587,7.87536203,2496.3,2495.8,4.00672383]
[1747550284797,7.87536203,2496.3,2495.7,4.81175883]
[1747550284963,7.87536203,2496.3,2495.8,4.00658752]
[1747550286198,7.87536203,2496.3,2495.9,4.00655866]
[1747550286984,0.8195,2496.5,2496.1,4.00619848]
[1747550287186,0.8195,2496.5,2496.0,4.0063473]
[1747550287497,8.7015,2496.5,2496.0,0.80128014]
[1747550287697,12.70711046,2496.5,2496.0,4.80761988]
[1747550288298,12.70720503,2496.5,2496.0,0.80128014]
[1747550289100,12.70720503,2496.5,2496.0,4.80768432]
[1747550289393,8.7015,2496.5,2496.0,4.80768432]
[1747550289799,12.70710932,2496.5,2496.0,4.80768432]
[1747550290002,12.70718885,2496.5,2496.0,0.80128014]
[1747550290799,12.70115592,2496.5,2496.0,4.80768119]
[1747550291191,8.69546707,2496.5,2496.0,4.80768119]
[1747550291798,8.69546707,2496.5,2496.0,0.80128014]
[1747550292005,12.70110803,2496.5,2496.0,4.80765965]
[1747550292912,8.69546707,2496.5,2496.0,4.8076461]
[1747550294009,8.69546707,2496.5,2496.0,0.80128014]
[1747550294177,8.69546707,2496.5,2495.8,4.48656505]
[1747550294178,4.00585573,2496.4,2495.8,4.48653411]
[1747550294378,12.70113958,2496.5,2495.8,0.4798912]
[1747550294628,8.69546707,2496.5,2495.9,4.00643786]
[1747550294831,12.70114624,2496.5,2495.9,4.00657077]
[1747550295011,8.69546707,2496.5,2495.9,4.00657077]
[1747550295213,8.69546707,2496.5,2496.0,4.00641025]
[1747550295407,8.69546707,2496.5,2496.0,4.00627722]
[1747550295891,8.69546707,2496.5,2496.1,4.00622718]
[1747550296613,12.70109806,2496.5,2496.0,4.00638968]
[1747550297307,8.69546707,2496.5,2496.0,4.00638968]
[1747550298412,8.69546707,2496.5,2496.1,4.00616802]
[1747550298617,8.6878271,2496.5,2496.1,4.00616802]
[1747550299312,8.6878271,2496.5,2496.0,4.00633415]
[1747550299533,12.69345023,2496.5,2496.0,4.00633415]
[1747550299994,8.6878271,2496.5,2496.0,4.00633415]
[1747550300818,8.6878271,2496.5,2496.1,4.00622714]
[1747550301317,0.8058271,2496.5,2496.1,4.00622714]
[1747550301618,7.882,2496.4,2496.1,4.00618256]
[1747550305024,7.882,2496.4,2496.2,4.00608749]
[1747550305220,0.7798,2496.3,2495.8,0.4798912]
[1747550305402,4.78581169,2496.3,2495.8,0.4798912]
[1747550306303,0.77513096,2496.3,2495.8,4.48652]
[1747550306500,0.77513096,2496.3,2495.8,0.4798912]
[1747550306727,0.77513096,2496.3,2496.0,4.00639472]
[1747550306915,0.77513096,2496.3,2495.9,4.00649247]
[1747550307111,0.77513096,2496.3,2496.0,4.0063749]
[1747550307821,0.77513096,2496.3,2495.9,4.00654607]
[1747550308015,7.764,2496.3,2496.1,4.00621735]
[1747550308391,7.764,2496.3,2496.0,4.00633427]
[1747550312798,7.764,2496.3,2495.9,4.00652384]
[1747550313399,7.764,2496.3,2495.9,4.00656425]
[1747550313600,7.764,2496.3,2495.9,4.00652654]
[1747550314131,7.75918186,2496.3,2495.9,4.00652654]
[1747550318404,11.77004407,2496.3,2495.8,1.2855912]
[1747550318736,11.77004407,2496.3,2495.8,4.48656368]
[1747550319231,7.764,2496.3,2495.8,0.4798912]
[1747550319534,4.80519628,2496.2,2495.8,0.4798912]
[1747550319907,0.7991,2496.2,2495.8,0.4798912]
[1747550320312,4.80524815,2496.2,2495.8,0.4798912]
[1747550321124,0.7991,2496.2,2495.8,0.4798912]
[1747550321328,0.7991,2496.2,2495.9,4.00648523]
[1747550321833,7.764,2496.3,2496.0,4.0063337]
[1747550322006,0.7991,2496.4,2496.2,0.00648722]
[1747550322207,8.5631,2496.4,2496.2,0.00648722]
[1747550322546,9.94066319,2496.4,2496.2,0.00648722]
[1747550323645,13.94656247,2496.4,2496.2,0.00648722]
[1747550324929,13.94656247,2496.4,2496.0,0.00648722]
[1747550326334,0.7991,2496.3,2496.0,0.00648722]
[1747550329140,0.7991,2496.3,2496.0,4.01285255]
[1747550329445,7.764,2496.4,2496.0,0.00648722]
[1747550329750,7.75593575,2496.4,2496.0,0.00648722]
[1747550330728,7.75593575,2496.4,2496.1,4.00616617]
[1747550331033,7.75593575,2496.4,2496.2,0.00648722]
[1747550332348,7.75593575,2496.4,2496.2,0.00304007]
[1747550333442,0.8122,2496.5,2496.2,0.00304007]
[1747550333649,7.764,2496.4,2496.2,0.00304007]
[1747550334148,8.5292,2496.5,2496.2,0.00304007]
[1747550337553,8.52261972,2496.5,2496.2,0.00304007]
[1747550337856,8.52261972,2496.5,2496.2,4.00909035]
[1747550338152,0.80561972,2496.5,2496.2,4.00909035]
[1747550338453,7.717,2497.1,2496.6,4.00533194]
[1747550338946,4.00467039,2497.1,2496.6,4.00533194]
[1747550339252,7.717,2497.0,2496.6,4.00533194]
[1747550340462,4.00467808,2497.1,2496.7,0.38372348]
[1747550340769,7.717,2497.0,2496.7,0.38372348]
[1747550341155,11.72182717,2497.0,2496.7,0.38372348]
[1747550341957,7.717,2497.0,2496.7,0.38372348]
[1747550342321,4.00504619,2496.9,2496.4,4.00576229]
[1747550342531,4.00504619,2496.9,2496.3,5.24937305]
[1747550343628,0.8199,2496.8,2496.3,4.48577305]
[1747550343834,0.8199,2496.8,2496.4,0.38347846]
[1747550344731,12.54176749,2497.0,2496.5,4.0055176]
[1747550345059,8.5369,2497.0,2496.5,4.00549837]
[1747550345259,20.25779017,2497.0,2496.4,4.38917097]
[1747550345559,20.25127893,2497.0,2496.4,4.38917122]
[1747550345768,20.25127893,2497.0,2496.5,4.00560722]
[1747550346259,4.82479017,2497.0,2496.5,4.38908568]
[1747550346439,7.716,2496.9,2496.5,4.38908568]
[1747550347340,11.72097135,2496.9,2496.6,0.38347846]
[1747550347658,4.00528697,2496.7,2496.6,0.38347846]
[1747550348630,4.00528697,2496.7,2496.2,4.00911222]
[1747550349361,4.00569188,2496.5,2496.2,0.00304007]
[1747550349663,4.8254059,2496.6,2496.2,0.00304007]
[1747550349844,4.00562069,2496.5,2496.2,0.00304007]
[1747550350794,4.00562069,2496.5,2496.0,4.43927496]
[1747550352577,4.8254368,2496.6,2496.1,4.00614263]
[1747550352879,4.8254368,2496.6,2496.1,4.38960329]
[1747550353168,4.81766975,2496.6,2496.1,4.38960329]
[1747550353466,4.81759638,2496.6,2496.1,4.38969453]
[1747550354281,4.81759638,2496.6,2496.2,0.38346066]
[1747550354455,6.70486877,2496.6,2496.2,0.38346066]
[1747550355877,6.70486877,2496.6,2496.1,0.38346066]
[1747550356082,4.00564652,2496.5,2496.1,0.38346066]
[1747550356779,11.72164652,2496.5,2496.1,0.38346066]
[1747550357546,7.716,2496.5,2496.1,0.38346066]
[1747550357742,11.72169015,2496.5,2496.1,0.38346066]
[1747550358187,4.00569015,2496.5,2496.1,0.38346066]
[1747550358484,7.717,2496.4,2496.1,0.38346066]
[1747550360044,6.70493141,2496.6,2496.1,4.38969589]
[1747550360288,6.70493141,2496.6,2496.1,0.38346066]
[1747550360289,11.72261822,2496.5,2496.1,0.38346066]
[1747550360673,14.05532769,2496.7,2496.1,0.38346066]
[1747550360674,17.767,2496.7,2496.2,0.7842]
[1747550360850,21.03992033,2496.7,2496.3,4.00592013]
[1747550361192,10.0444654,2496.7,2496.4,4.00568693]
[1747550361884,10.0444654,2496.7,2496.5,0.38346066]
[1747550362687,10.0444654,2496.7,2496.5,4.38896297]
[1747550362879,10.0444654,2496.7,2496.6,4.8353474]
[1747550363386,10.0444654,2496.7,2496.6,5.21880806]
[1747550364365,14.417,2497.0,2496.7,4.00523871]
[1747550364770,7.713,2497.1,2496.7,4.00523871]
[1747550366788,7.713,2497.1,2496.6,4.83527159]
[1747550366947,7.713,2497.1,2496.9,4.00484593]
[1747550367981,7.713,2497.1,2496.8,4.00504254]
[1747550368692,7.70695106,2497.1,2496.9,0.3832651]
[1747550369191,7.70695106,2497.1,2496.9,4.38821168]
[1747550369585,7.70695106,2497.1,2497.0,4.82290576]
[1747550370287,7.70695106,2497.1,2497.0,5.20617086]
[1747550370495,7.70695106,2497.1,2497.0,1.2013651]
[1747550370994,8.499,2497.5,2497.0,1.2013651]
[1747550371193,7.712,2497.5,2497.1,4.00450892]
[1747550371496,7.712,2497.5,2497.1,0.3832651]
[1747550372370,7.712,2497.5,2497.0,4.82282349]
[1747550372566,7.712,2497.5,2497.0,0.8181]
[1747550372773,4.83187755,2497.4,2496.8,4.76504837]
[1747550372972,4.00435059,2497.3,2496.8,4.76504837]
[1747550373166,4.00435059,2497.3,2496.8,0.76]
[1747550373581,4.00435059,2497.3,2496.9,0.38281685]
[1747550374201,4.83183107,2497.4,2496.9,0.38281685]
[1747550374400,0.8276,2497.4,2496.9,4.38778059]
[1747550374603,0.8276,2497.4,2497.0,4.00478293]
[1747550374807,7.712,2497.5,2497.0,4.00478293]
[1747550374974,11.71605748,2497.5,2496.9,1.14281685]
[1747550375173,11.71605748,2497.5,2496.9,0.76]
[1747550375601,0.8276,2497.6,2497.1,4.00454488]
[1747550375899,7.712,2497.5,2497.0,4.00472644]
[1747550376105,7.712,2497.5,2497.0,4.88169165]
[1747550376406,7.712,2497.5,2497.0,4.88171003]
[1747550376604,7.70626026,2497.5,2497.1,4.00462488]
[1747550377105,7.70626026,2497.5,2497.2,4.00446223]
[1747550377280,14.417,2497.7,2497.3,4.00430105]
[1747550377494,22.129,2497.7,2497.3,0.76]
[1747550377806,22.129,2497.7,2497.3,4.76431874]
[1747550378006,0.7581,2497.6,2496.7,0.8073]
[1747550378215,25.03344492,2497.7,2496.8,4.005117]
[1747550378216,0.7581,2497.2,2496.8,4.005117]
[1747550378373,8.4691,2497.2,2496.8,4.005117]
[1747550378707,8.4691,2497.2,2496.8,4.38754848]
[1747550380004,8.4691,2497.2,2496.9,0.38243148]
[1747550381115,8.4691,2497.2,2496.8,4.005117]
[1747550381993,4.00465737,2497.1,2496.6,4.00534021]
[1747550382690,4.00486564,2497.0,2496.5,4.00560675]
[1747550383391,4.00468968,2497.1,2496.6,4.00539614]
[1747550383900,4.00468968,2497.1,2496.3,9.15016111]
[1747550383901,4.00481677,2497.0,2496.5,4.00555947]
[1747550384438,4.0047004,2497.1,2497.0,0.0049212]
[1747550384923,13.72100249,2497.2,2497.0,0.0049212]
[1747550387378,13.72100249,2497.2,2496.7,0.0049212]
[1747550387576,9.71644589,2497.2,2496.7,0.0049212]
[1747550387878,8.4691,2497.2,2496.8,4.00512233]
[1747550389424,0.7581,2497.2,2496.8,4.00512233]
[1747550389724,0.7581,2497.2,2496.7,0.8080212]
[1747550389725,7.712,2497.2,2496.9,4.00488412]
[1747550390476,7.712,2497.2,2497.0,0.0049212]
[1747550390877,7.712,2497.2,2497.1,4.00464538]
[1747550391172,7.712,2497.2,2497.0,4.00966386]
[1747550391400,7.712,2497.2,2497.0,0.0049212]
[1747550391675,7.712,2497.2,2497.0,4.0096698]
[1747550392136,7.712,2497.2,2497.0,0.0049212]
[1747550392276,7.70379266,2497.2,2497.0,0.0049212]
[1747550392995,0.7628,2497.1,2497.0,0.0049212]
[1747550393530,0.7628,2497.1,2496.7,4.00526024]
[1747550393697,0.7628,2497.1,2496.7,4.88664549]
[1747550394836,0.7628,2497.1,2496.7,0.88138525]
[1747550395042,4.76746382,2497.1,2496.6,4.00538681]
[1747550395248,0.7628,2497.1,2496.7,0.38355636]
[1747550396457,0.7628,2497.1,2496.8,0.0049212]
[1747550397174,0.7628,2497.1,2496.9,0.38355636]
[1747550397856,6.01458639,2497.1,2496.9,0.38355636]
[1747550398429,6.01458639,2497.1,2496.8,0.0049212]
[1747550398629,0.7628,2497.1,2496.8,0.0049212]
[1747550398967,4.7674572,2497.1,2496.8,0.0049212]
[1747550399867,0.7628,2497.1,2496.8,0.0049212]
[1747550400643,4.76747501,2497.1,2496.8,0.0049212]
[1747550402767,4.00492907,2497.0,2496.8,0.0049212]
[1747550403081,4.00496615,2496.9,2496.8,0.0049212]
[1747550405343,4.00496615,2496.9,2496.4,0.0049212]
[1747550405745,4.00516296,2496.8,2496.5,0.38358859]
[1747550405949,0.7717,2496.6,2496.5,0.38358859]
[1747550406144,7.708,2496.7,2496.5,0.38358859]
[1747550406881,7.708,2496.7,2496.6,4.0054474]
[1747550407381,7.708,2497.1,2496.8,4.77450783]
[1747550407760,7.708,2497.1,2496.8,0.7695]
[1747550408485,7.708,2497.1,2496.9,0.0049212]
[1747550409295,11.71266043,2497.1,2496.9,0.0049212]
[1747550409464,14.80487755,2497.1,2496.9,0.0049212]
[1747550411220,4.75480576,2497.0,2496.9,0.0049212]
[1747550411515,4.75480576,2497.0,2496.5,0.0049212]
[1747550411724,0.75,2497.0,2496.6,0.38390127]
[1747550412002,7.707,2497.0,2496.6,1.13910127]
[1747550412511,7.707,2497.0,2496.7,4.00527295]
[1747550412668,7.707,2497.0,2496.6,5.14449683]
[1747550412872,0.75,2497.2,2496.6,5.14449256]
[1747550413073,7.707,2497.1,2496.9,4.00489859]
[1747550413273,7.707,2497.1,2496.8,4.00505864]
[1747550413524,7.707,2497.1,2496.9,4.00496184]
[1747550414011,7.707,2497.1,2497.0,0.38390127]
[1747550414384,7.707,2497.1,2497.0,0.38882247]
[1747550427936,7.707,2497.1,2497.0,4.39362823]
[1747550428522,7.707,2497.1,2497.0,0.38882247]
[1747550429033,7.702,2497.3,2497.0,0.38882247]
[1747550429433,7.702,2497.3,2497.1,0.38390127]
[1747550430000,11.70633012,2497.3,2497.1,0.38390127]
[1747550430805,11.70633012,2497.3,2497.0,0.0049212]
[1747550433235,13.35957964,2497.3,2497.0,0.0049212]
[1747550435439,9.35517844,2497.3,2497.0,0.0049212]
[1747550435617,7.702,2497.3,2497.0,0.0049212]
[1747550435812,7.702,2497.3,2497.1,1.14771404]
[1747550436034,14.417,2497.7,2497.2,4.00448502]
[1747550436233,7.702,2497.6,2497.3,4.00430687]
[1747550436763,7.702,2497.6,2497.4,4.00403755]
[1747550437630,14.417,2497.7,2497.4,0.80083393]
[1747550437825,7.702,2497.8,2497.2,0.7639]
[1747550438138,7.702,2497.8,2497.2,4.00446387]
[1747550438139,4.787369,2497.7,2497.2,4.00446387]
[1747550438338,4.787369,2497.7,2497.5,0.38381404]
[1747550439048,0.7836,2497.7,2497.5,0.38381404]
[1747550440158,0.7836,2497.7,2497.2,4.48425611]
[1747550441274,0.7836,2497.7,2497.3,0.38338028]
[1747550441859,0.7836,2497.7,2497.3,4.38768084]
[1747550442059,7.701,2497.8,2497.4,5.16903135]
[1747550442453,4.00340892,2497.9,2497.4,5.16903135]
[1747550442655,7.701,2497.8,2497.4,5.16903135]
[1747550443173,4.00340892,2497.9,2497.4,5.16903135]
[1747550443375,7.701,2497.9,2497.4,5.16903135]
[1747550443752,11.70439616,2497.9,2497.4,5.16903135]
[1747550443952,4.00354725,2497.8,2497.4,1.16488028]
[1747550444187,10.35249427,2497.9,2497.5,0.38338028]
[1747550444358,4.00381619,2497.7,2497.5,0.38338028]
[1747550445263,4.00381619,2497.7,2497.2,0.47979224]
[1747550445977,4.00381619,2497.7,2497.2,4.4842667]
[1747550446190,4.76659675,2497.8,2497.3,4.00430105]
[1747550446373,4.76659675,2497.8,2497.3,4.38751266]
[1747550446573,7.701,2497.7,2497.3,4.38751266]
[1747550446793,7.701,2497.7,2497.3,5.27470479]
[1747550447595,7.701,2497.7,2497.4,4.78564645]
[1747550448099,7.701,2497.7,2497.5,0.38321161]
[1747550448695,12.46778839,2497.7,2497.5,0.38321161]
[1747550449677,8.464,2497.7,2497.5,0.38321161]
[1747550449872,8.464,2497.7,2497.2,4.78597732]
[1747550450078,8.464,2497.7,2497.3,4.00431998]
[1747550450765,8.464,2497.7,2497.2,4.78590655]
[1747550451904,8.464,2497.7,2497.3,0.38321295]
[1747550452272,12.4676915,2497.7,2497.3,0.38321295]
[1747550453168,12.4676915,2497.7,2497.4,0.38321295]
[1747550453801,4.004004,2497.5,2497.4,0.38321295]
[1747550454505,4.004004,2497.5,2497.1,0.47979224]
[1747550454506,4.00417762,2497.4,2497.2,0.38321295]
[1747550455018,4.00407645,2497.5,2497.2,0.38321295]
[1747550455506,4.0038555,2497.6,2497.2,0.38321295]
[1747550456811,14.11484086,2497.7,2497.2,4.38768264]
[1747550457315,14.11484086,2497.7,2497.2,1.13621295]
[1747550457316,8.464,2497.7,2497.2,1.13621295]
[1747550457497,7.701,2497.7,2497.2,5.14054824]
[1747550457698,7.701,2497.7,2497.3,4.00422944]
[1747550457904,0.8192,2497.9,2497.4,4.00414162]
[1747550458106,4.00326654,2498.0,2497.5,4.00395449]
[1747550458311,22.55235995,2498.1,2497.6,1.57900961]
[1747550458603,22.55235995,2498.1,2497.6,0.7782]
[1747550459781,22.55235995,2498.1,2497.7,0.38321295]
[1747550460207,21.74255995,2498.1,2497.7,0.38321295]
[1747550460509,17.7394654,2498.1,2497.7,0.38321295]
[1747550460709,17.7394654,2498.1,2497.7,4.38682221]
[1747550461233,17.7394654,2498.1,2497.7,0.38321295]
[1747550461410,17.7394654,2498.1,2497.8,0.38321295]
[1747550461411,4.00324373,2498.0,2497.8,0.38321295]
[1747550462125,21.81519241,2498.1,2497.8,0.38321295]
[1747550462327,17.7394654,2498.1,2497.8,0.38321295]
[1747550462506,21.74252739,2498.1,2497.7,0.38321295]
[1747550462707,4.00323362,2498.0,2497.7,0.38321295]
[1747550463309,21.74257,2498.1,2497.7,0.38321295]
[1747550463821,4.00321914,2498.0,2497.7,0.38321295]
[1747550464217,15.1801,2498.3,2497.8,4.00350161]
[1747550464444,11.69690127,2498.2,2497.7,4.38683778]
[1747550464620,7.694,2498.2,2497.8,0.38321295]
[1747550464947,11.69688673,2498.2,2497.8,0.38321295]
[1747550466247,7.694,2498.2,2497.8,4.38665967]
[1747550466622,14.412,2498.3,2497.8,0.38321295]
[1747550466817,7.694,2498.2,2498.0,4.00310435]
[1747550467129,7.694,2498.2,2497.9,4.82152195]
[1747550467533,7.694,2498.2,2498.0,4.00319735]
[1747550467850,7.694,2498.2,2498.0,0.38321295]
[1747550469342,7.694,2498.2,2498.0,4.38640459]
[1747550469547,7.694,2498.2,2498.0,0.38321295]
[1747550469916,7.6906907,2498.2,2498.0,0.38321295]
[1747550470341,7.6906907,2498.2,2498.0,1.30403033]
[1747550470546,7.6906907,2498.2,2498.0,4.38641549]
[1747550471050,7.6906907,2498.2,2498.0,0.38321295]
[1747550473145,7.6906907,2498.2,2498.0,4.38634705]
[1747550473332,7.6906907,2498.2,2498.0,0.38321295]
[1747550473538,7.6906907,2498.2,2498.0,4.90683356]
[1747550474353,7.6906907,2498.2,2498.0,0.90368953]
[1747550475051,7.6906907,2498.2,2498.1,0.38321295]
[1747550478264,7.6906907,2498.2,2497.9,4.82148058]
[1747550478651,7.6906907,2498.2,2497.7,4.48344047]
[1747550478652,12.46226048,2498.2,2497.7,5.31131726]
[1747550479058,8.4592907,2498.2,2497.7,5.31131726]
[1747550479255,12.46217385,2498.2,2497.7,5.31131726]
[1747550480069,12.46217385,2498.2,2497.8,0.38283078]
[1747550481472,12.46217385,2498.2,2497.9,0.38283078]
[1747550481847,8.4592907,2498.2,2497.9,0.38283078]
[1747550482169,4.8490945,2498.1,2497.9,0.38283078]
[1747550482370,4.77180256,2498.0,2497.9,0.38283078]
[1747550483043,12.46480256,2498.0,2497.9,0.38283078]
[1747550483572,12.46480256,2498.0,2497.4,4.00408552]
[1747550484068,4.00342144,2497.9,2497.4,4.00408552]
[1747550484272,4.00342144,2497.9,2497.5,0.38298567]
[1747550486795,4.00342144,2497.9,2497.6,0.38298567]
[1747550487799,4.00342144,2497.9,2497.5,0.38298567]
[1747550489097,4.00352328,2497.8,2497.5,0.38298567]
[1747550489594,4.00341345,2497.9,2497.5,0.38298567]
[1747550489798,4.00341345,2497.9,2497.4,4.38713113]
[1747550490880,4.00341345,2497.9,2497.4,0.38298567]
[1747550491911,4.00355396,2497.8,2497.4,0.38298567]
[1747550494100,4.00344228,2497.9,2497.4,0.38298567]
[1747550494695,4.00342939,2497.9,2497.4,0.38298567]
[1747550495204,4.00353359,2497.8,2497.4,0.38298567]
[1747550498003,4.00344261,2497.9,2497.4,4.38712166]
[1747550498818,12.46483534,2498.0,2497.4,4.38709777]
[1747550499015,7.693,2498.0,2497.7,4.00357518]
[1747550499513,7.693,2498.0,2497.6,4.0038364]
[1747550500280,11.69621248,2498.0,2497.5,4.78503772]
[1747550500479,11.69621248,2498.0,2497.7,0.38298567]
[1747550500683,7.693,2498.0,2497.7,0.38298567]
[1747550501921,7.693,2498.0,2497.6,0.38298567]
[1747550504029,11.69621544,2498.0,2497.6,0.38298567]
[1747550504528,4.00345386,2497.9,2497.6,0.38298567]
[1747550504831,4.75475386,2497.9,2497.6,0.38298567]
[1747550505030,4.75475386,2497.9,2497.5,0.38298567]
[1747550505395,0.7513,2497.9,2497.5,0.38298567]
[1747550505619,0.7513,2497.9,2497.5,0.86967507]
[1747550505826,0.7513,2497.9,2497.5,4.87366887]
[1747550506331,11.69627274,2498.0,2497.6,0.38298567]
[1747550507732,11.69633491,2498.0,2497.6,0.38298567]
[1747550508729,4.00339511,2497.9,2497.6,0.38298567]
[1747550509031,11.69625414,2498.0,2497.6,0.38298567]
[1747550509746,11.69625414,2498.0,2497.7,0.38298567]
[1747550510235,4.00340187,2497.9,2497.7,0.38298567]
[1747550510420,4.0035231,2497.8,2497.7,0.38298567]
[1747550510620,4.00343413,2497.9,2497.7,0.38298567]
[1747550510826,4.00343413,2497.9,2497.5,0.38298567]
[1747550511014,11.69628486,2498.0,2497.5,0.38298567]
[1747550511214,4.00338989,2497.9,2497.5,0.38298567]
[1747550511935,11.69628542,2498.0,2497.6,0.38298567]
[1747550512107,7.693,2498.0,2497.7,0.7583]
[1747550513624,7.693,2498.0,2497.8,0.38298567]
[1747550514943,4.79292229,2498.3,2497.8,0.38298567]
[1747550515237,7.686,2498.0,2497.8,4.38649378]
[1747550515440,7.686,2498.0,2497.9,0.38298567]
[1747550517158,7.686,2498.0,2497.8,0.38298567]
[1747550518961,7.686,2498.0,2497.9,0.38298567]
[1747550521283,7.686,2498.0,2497.6,0.47979224]
[1747550521284,7.686,2498.0,2497.7,0.38298567]
[1747550522869,11.68920719,2498.0,2497.7,0.38298567]
[1747550523073,4.81606282,2497.9,2497.8,0.38298567]
[1747550523373,0.8127,2497.9,2497.8,0.38298567]
[1747550524668,0.8127,2497.9,2497.6,0.38298567]
[1747550524888,7.686,2498.0,2497.6,4.38676174]
[1747550525179,0.8127,2498.1,2497.6,4.38676174]
[1747550525340,7.677,2497.9,2497.6,5.20176174]
[1747550525974,7.677,2497.9,2497.8,4.0035231]
[1747550526455,7.677,2498.0,2497.8,4.0035231]
[1747550527644,7.677,2498.0,2497.9,0.38298567]
[1747550527846,25.2651654,2498.4,2497.9,4.38634849]
[1747550528044,7.677,2498.2,2497.9,5.20134849]
[1747550528795,7.677,2498.2,2497.9,0.38298567]
[1747550529261,7.677,2498.2,2497.8,4.00349421]
[1747550529262,7.677,2498.2,2498.0,0.38298567]
[1747550530454,9.56695705,2498.2,2498.0,0.38298567]
[1747550530653,9.56695705,2498.2,2497.8,0.38298567]
[1747550530951,7.677,2498.2,2497.8,0.38298567]
[1747550531486,11.67988947,2498.2,2497.8,0.38298567]
[1747550532196,7.677,2498.2,2497.8,0.38298567]
[1747550532357,7.677,2498.2,2497.9,0.38298567]
[1747550534491,11.67989059,2498.2,2497.9,0.38298567]
[1747550534993,4.83577729,2498.1,2497.9,0.38298567]
[1747550535562,4.83577729,2498.1,2497.8,0.38298567]
[1747550535998,0.8327,2498.1,2497.8,0.38298567]
[1747550536895,0.8327,2498.1,2497.7,4.00363624]
[1747550536896,0.8327,2498.1,2497.9,0.38298567]
[1747550538618,0.8327,2498.1,2497.8,0.38298567]
[1747550539790,4.0032555,2498.0,2497.8,0.38298567]
[1747550539983,5.68678345,2498.1,2497.7,0.38298567]
[1747550541665,5.68678345,2498.1,2497.8,0.38298567]
[1747550542894,5.68678345,2498.1,2497.7,0.38298567]
[1747550543108,0.8327,2498.1,2497.7,0.38298567]
[1747550543605,11.67996049,2498.2,2497.7,0.38298567]
[1747550544283,11.67996049,2498.2,2497.8,0.38298567]
[1747550544811,0.7791,2498.3,2497.8,1.15478567]
[1747550545099,7.676,2498.2,2498.0,4.00315909]
[1747550545805,7.676,2498.2,2498.1,0.38298567]
[1747550546901,10.0444654,2498.4,2498.1,0.38298567]
[1747550547102,7.676,2498.3,2498.1,0.38298567]
[1747550547303,7.676,2498.3,2498.0,4.38618801]
[1747550547499,7.676,2498.3,2498.0,5.30233473]
[1747550547714,7.676,2498.3,2498.0,4.38618801]
[1747550548716,7.676,2498.3,2498.1,0.38298567]
[1747550549212,7.676,2498.3,2498.1,5.16721653]
[1747550550113,7.676,2498.3,2498.2,0.38298567]
[1747550550319,7.676,2498.3,2498.2,4.38586774]
[1747550550811,14.408,2498.6,2498.2,4.38586774]
[1747550551015,7.666,2498.4,2498.2,4.38586774]
[1747550551418,7.666,2498.4,2498.3,0.38298567]
[1747550551918,14.408,2498.6,2498.3,0.38298567]
[1747550552213,7.665,2498.5,2498.3,0.38298567]
[1747550554935,14.408,2498.6,2498.4,4.00254412]
[1747550555235,7.665,2498.8,2498.4,4.79084412]
[1747550555443,0.8189,2499.1,2498.5,4.00230203]
[1747550555731,7.665,2498.9,2498.6,4.00216873]
[1747550556296,7.665,2498.9,2498.5,4.0023662]